{"text_format":"3","workbook":"xlsx","n_sheets":1,"sheets":["PĀRVEIDOŠANAS IZMAKSAS"],"not_rendered":{"images":2,"defined_names":4},"read":"whole","date_system":"1900"}

{"sheet":"PĀRVEIDOŠANAS IZMAKSAS","index":0,"n_rows":28,"n_cols":8,"rows_kept":28,"merged":[[25,1,25,5],[26,1,26,5],[27,1,27,5]]}
[null,"VIRTUVES PĀRVEIDOŠANAS IZMAKSU DARBLAPA"]
[]
[null,"Kategorija","Preces","Skaits","Plānotās izmaksas","Faktiskās izmaksas","Kopējās plānotās izmaksas","Kopējās faktiskās izmaksas"]
[null,"Skapīši","Apakšējie skapīši: Standarta moduļu (daudzums lineāros metros)",25,{"v":5,"d":"5.00 EUR"},null,{"$f":"Dati[[#This Row],[Skaits]]*Dati[[#This Row],[Plānotās izmaksas]]","v":{"v":125,"d":"125 EUR"}},{"$f":"Dati[[#This Row],[Skaits]]*Dati[[#This Row],[Faktiskās izmaksas]]","v":{"v":0,"d":"0 EUR"}}]
[null,"Skapīši","Augšējie skapīši: Standarta moduļu (daudzums lineāros metros)",25,{"v":3.5,"d":"3.50 EUR"},null,{"$f":"Dati[[#This Row],[Skaits]]*Dati[[#This Row],[Plānotās izmaksas]]","v":{"v":87.5,"d":"88 EUR"}},{"$f":"Dati[[#This Row],[Skaits]]*Dati[[#This Row],[Faktiskās izmaksas]]","v":{"v":0,"d":"0 EUR"}}]
[null,"Tīrīšanas rīki","Trauku mazgājamā mašīna: standarta",1,{"v":250,"d":"250.00 EUR"},null,{"$f":"Dati[[#This Row],[Skaits]]*Dati[[#This Row],[Plānotās izmaksas]]","v":{"v":250,"d":"250 EUR"}},{"$f":"Dati[[#This Row],[Skaits]]*Dati[[#This Row],[Faktiskās izmaksas]]","v":{"v":0,"d":"0 EUR"}}]
[null,"Tīrīšanas rīki","Atkritumu urna: standarta",1,{"v":175,"d":"175.00 EUR"},null,{"$f":"Dati[[#This Row],[Skaits]]*Dati[[#This Row],[Plānotās izmaksas]]","v":{"v":175,"d":"175 EUR"}},{"$f":"Dati[[#This Row],[Skaits]]*Dati[[#This Row],[Faktiskās izmaksas]]","v":{"v":0,"d":"0 EUR"}}]
[null,"Virtuves ierīces","Diapazons: iebīdāmā standarta",1,{"v":375,"d":"375.00 EUR"},null,{"$f":"Dati[[#This Row],[Skaits]]*Dati[[#This Row],[Plānotās izmaksas]]","v":{"v":375,"d":"375 EUR"}},{"$f":"Dati[[#This Row],[Skaits]]*Dati[[#This Row],[Faktiskās izmaksas]]","v":{"v":0,"d":"0 EUR"}}]
[null,"Virtuves ierīces","Mikroviļņu krāsniņa: standarta",1,{"v":300,"d":"300.00 EUR"},null,{"$f":"Dati[[#This Row],[Skaits]]*Dati[[#This Row],[Plānotās izmaksas]]","v":{"v":300,"d":"300 EUR"}},{"$f":"Dati[[#This Row],[Skaits]]*Dati[[#This Row],[Faktiskās izmaksas]]","v":{"v":0,"d":"0 EUR"}}]
[null,"Letes","Cietas virsmas (daudzums lineāros metros)",23,{"v":10,"d":"10.00 EUR"},null,{"$f":"Dati[[#This Row],[Skaits]]*Dati[[#This Row],[Plānotās izmaksas]]","v":{"v":230,"d":"230 EUR"}},{"$f":"Dati[[#This Row],[Skaits]]*Dati[[#This Row],[Faktiskās izmaksas]]","v":{"v":0,"d":"0 EUR"}}]
[null,"Durvis","Interjers: finierēts panelis",1,{"v":65,"d":"65.00 EUR"},null,{"$f":"Dati[[#This Row],[Skaits]]*Dati[[#This Row],[Plānotās izmaksas]]","v":{"v":65,"d":"65 EUR"}},{"$f":"Dati[[#This Row],[Skaits]]*Dati[[#This Row],[Faktiskās izmaksas]]","v":{"v":0,"d":"0 EUR"}}]
[null,"Papildu","Papildu: tūlītēja karstā ūdens padeve, standarta",1,{"v":120,"d":"120.00 EUR"},null,{"$f":"Dati[[#This Row],[Skaits]]*Dati[[#This Row],[Plānotās izmaksas]]","v":{"v":120,"d":"120 EUR"}},{"$f":"Dati[[#This Row],[Skaits]]*Dati[[#This Row],[Faktiskās izmaksas]]","v":{"v":0,"d":"0 EUR"}}]
[null,"Papildu","Papildu: Mazgāšanas līdzekļa dozators",1,{"v":40,"d":"40.00 EUR"},null,{"$f":"Dati[[#This Row],[Skaits]]*Dati[[#This Row],[Plānotās izmaksas]]","v":{"v":40,"d":"40 EUR"}},{"$f":"Dati[[#This Row],[Skaits]]*Dati[[#This Row],[Faktiskās izmaksas]]","v":{"v":0,"d":"0 EUR"}}]
[null,"Jaucējkrāni","Jaucējkrāns: sviras, standarta",1,{"v":130,"d":"130.00 EUR"},null,{"$f":"Dati[[#This Row],[Skaits]]*Dati[[#This Row],[Plānotās izmaksas]]","v":{"v":130,"d":"130 EUR"}},{"$f":"Dati[[#This Row],[Skaits]]*Dati[[#This Row],[Faktiskās izmaksas]]","v":{"v":0,"d":"0 EUR"}}]
[null,"Grīda","Lamināts (daudzums kvadrātmetros)",165,{"v":3.5,"d":"3.50 EUR"},null,{"$f":"Dati[[#This Row],[Skaits]]*Dati[[#This Row],[Plānotās izmaksas]]","v":{"v":577.5,"d":"578 EUR"}},{"$f":"Dati[[#This Row],[Skaits]]*Dati[[#This Row],[Faktiskās izmaksas]]","v":{"v":0,"d":"0 EUR"}}]
[null,"Veļas mazgāšanas tehnika","Mazgājamā mašīna: standarta",1,{"v":500,"d":"500.00 EUR"},null,{"$f":"Dati[[#This Row],[Skaits]]*Dati[[#This Row],[Plānotās izmaksas]]","v":{"v":500,"d":"500 EUR"}},{"$f":"Dati[[#This Row],[Skaits]]*Dati[[#This Row],[Faktiskās izmaksas]]","v":{"v":0,"d":"0 EUR"}}]
[null,"Veļas mazgāšanas tehnika","Žāvētājs: standarta",1,{"v":375,"d":"375.00 EUR"},null,{"$f":"Dati[[#This Row],[Skaits]]*Dati[[#This Row],[Plānotās izmaksas]]","v":{"v":375,"d":"375 EUR"}},{"$f":"Dati[[#This Row],[Skaits]]*Dati[[#This Row],[Faktiskās izmaksas]]","v":{"v":0,"d":"0 EUR"}}]
[null,"Apgaismojums","Apgaismojums: gaismas ķermenis padziļinājumā",4,{"v":35,"d":"35.00 EUR"},null,{"$f":"Dati[[#This Row],[Skaits]]*Dati[[#This Row],[Plānotās izmaksas]]","v":{"v":140,"d":"140 EUR"}},{"$f":"Dati[[#This Row],[Skaits]]*Dati[[#This Row],[Faktiskās izmaksas]]","v":{"v":0,"d":"0 EUR"}}]
[null,"Ledusskapji","Ledusskapis: atsevišķs, luksus klases",1,{"v":1200,"d":"1,200.00 EUR"},null,{"$f":"Dati[[#This Row],[Skaits]]*Dati[[#This Row],[Plānotās izmaksas]]","v":{"v":1200,"d":"1,200 EUR"}},{"$f":"Dati[[#This Row],[Skaits]]*Dati[[#This Row],[Faktiskās izmaksas]]","v":{"v":0,"d":"0 EUR"}}]
[null,"Izlietnes","divdaļīga, nerūsējošā tērauda, luksus klases",1,{"v":125,"d":"125.00 EUR"},null,{"$f":"Dati[[#This Row],[Skaits]]*Dati[[#This Row],[Plānotās izmaksas]]","v":{"v":125,"d":"125 EUR"}},{"$f":"Dati[[#This Row],[Skaits]]*Dati[[#This Row],[Faktiskās izmaksas]]","v":{"v":0,"d":"0 EUR"}}]
[null,"Ventilācija","Tvaika nosūcējs: ar kanālu, standarta",1,{"v":180,"d":"180.00 EUR"},null,{"$f":"Dati[[#This Row],[Skaits]]*Dati[[#This Row],[Plānotās izmaksas]]","v":{"v":180,"d":"180 EUR"}},{"$f":"Dati[[#This Row],[Skaits]]*Dati[[#This Row],[Faktiskās izmaksas]]","v":{"v":0,"d":"0 EUR"}}]
[null,"Sienas","Sienu apdares paneļi (daudzums kvadrātmetros)",70,{"v":2,"d":"2.00 EUR"},null,{"$f":"Dati[[#This Row],[Skaits]]*Dati[[#This Row],[Plānotās izmaksas]]","v":{"v":140,"d":"140 EUR"}},{"$f":"Dati[[#This Row],[Skaits]]*Dati[[#This Row],[Faktiskās izmaksas]]","v":{"v":0,"d":"0 EUR"}}]
[null,"Logi","Bīdāms",2,{"v":120,"d":"120.00 EUR"},null,{"$f":"Dati[[#This Row],[Skaits]]*Dati[[#This Row],[Plānotās izmaksas]]","v":{"v":240,"d":"240 EUR"}},{"$f":"Dati[[#This Row],[Skaits]]*Dati[[#This Row],[Faktiskās izmaksas]]","v":{"v":0,"d":"0 EUR"}}]
[null,"Citi",{"$nulls":4},{"$f":"Dati[[#This Row],[Skaits]]*Dati[[#This Row],[Plānotās izmaksas]]","v":{"v":0,"d":"0 EUR"}},{"$f":"Dati[[#This Row],[Skaits]]*Dati[[#This Row],[Faktiskās izmaksas]]","v":{"v":0,"d":"0 EUR"}}]
[null,"Kopsumma",null,null,{"$f":"SUBTOTAL(109,Dati[Plānotās izmaksas])","v":{"v":4014,"d":"4,014.00 EUR"}},{"$f":"SUBTOTAL(109,Dati[Faktiskās izmaksas])","v":{"v":0,"d":"0.00 EUR"}},{"$f":"SUBTOTAL(109,Dati[Kopējās plānotās izmaksas])","v":{"v":5375,"d":"5,375.00 EUR"}},{"$f":"SUBTOTAL(109,Dati[Kopējās faktiskās izmaksas])","v":{"v":0,"d":"0.00 EUR"}}]
[null,"Starpsumma",{"$nulls":4},{"$f":"SUBTOTAL(109,Dati[Kopējās plānotās izmaksas])","v":{"v":5375,"d":"5,375.00 EUR"}},{"$f":"SUBTOTAL(109,Dati[Kopējās faktiskās izmaksas])","v":{"v":0,"d":"0.00 EUR"}}]
[null,"Neparedzētas izmaksas, pievienojiet 30 %",{"$nulls":4},{"$f":"G26*0.3","v":{"v":1612.5,"d":"1,612.50 EUR"}},{"$f":"H26*0.3","v":{"v":0,"d":"0.00 EUR"}}]
[null,"Kopsumma",{"$nulls":4},{"$f":"SUM(G26:G27)","v":{"v":6987.5,"d":"6,987.50 EUR"}},{"$f":"SUM(H26:H27)","v":{"v":0,"d":"0.00 EUR"}}]